[Event "Titled Tuesday Blitz April 18 Early 2023"]
[White "Horak, Martin"]
[Black "Pavlidou, Ekaterini"]
[WhiteFideId "367095"]
[BlackFideId "4213262"]
[WhiteElo "2091"]
[BlackElo "2126"]
[Result "0-1"]
[Round "07"]
[TimeControl "180+2"]
[Date "2023.04.18"]
[WhiteClock "0:00:01"]
[BlackClock "0:00:19"]

1. d4 {[%clk 0:03:00]}  Nf6 {[%clk 0:02:58]} 2. Nf3 {[%clk 0:03:00]}  e6 {[%clk 0:02:58]} 3. c4 {[%clk 0:03:00]}  b6 {[%clk 0:02:54]} 4. g3 {[%clk 0:02:54]}  Ba6 {[%clk 0:02:53]} 5. Qc2 {[%clk 0:02:54]}  c6 {[%clk 0:02:53]} 6. Bg2 {[%clk 0:02:52]}  d5 {[%clk 0:02:53]} 7. Nbd2 {[%clk 0:02:46]}  Bb4 {[%clk 0:02:50]} 8. O-O {[%clk 0:02:41]}  Bxd2 {[%clk 0:02:50]} 9. Nxd2 {[%clk 0:02:41]}  O-O {[%clk 0:02:49]} 10. Rd1 {[%clk 0:02:31]}  Nbd7 {[%clk 0:02:49]} 11. e4 {[%clk 0:02:23]}  Rc8 {[%clk 0:02:45]} 12. Qa4 {[%clk 0:02:11]}  Nb8 {[%clk 0:02:45]} 13. e5 {[%clk 0:01:52]}  Nfd7 {[%clk 0:02:44]} 14. b3 {[%clk 0:01:26]}  b5 {[%clk 0:02:35]} 15. Qa3 {[%clk 0:01:11]}  bxc4 {[%clk 0:02:28]} 16. bxc4 {[%clk 0:01:12]}  dxc4 {[%clk 0:02:28]} 17. Ne4 {[%clk 0:01:10]}  Nb6 {[%clk 0:02:24]} 18. Nc5 {[%clk 0:01:03]}  Bb5 {[%clk 0:02:21]} 19. Be3 {[%clk 0:01:02]}  N8d7 {[%clk 0:02:17]} 20. Qb4 {[%clk 0:00:55]}  Nd5 {[%clk 0:02:16]} 21. Qe1 {[%clk 0:00:50]}  Nxc5 {[%clk 0:02:12]} 22. dxc5 {[%clk 0:00:46]}  a5 {[%clk 0:02:08]} 23. Bd4 {[%clk 0:00:44]}  Qc7 {[%clk 0:02:01]} 24. f4 {[%clk 0:00:44]}  Rfd8 {[%clk 0:01:57]} 25. Be4 {[%clk 0:00:44]}  Ne7 {[%clk 0:01:56]} 26. Bc3 {[%clk 0:00:34]}  Rd3 {[%clk 0:01:53]} 27. Bxd3 {[%clk 0:00:29]}  cxd3 {[%clk 0:01:53]} 28. Bxa5 {[%clk 0:00:29]}  Qa7 {[%clk 0:01:53]} 29. Bb6 {[%clk 0:00:28]}  Qa3 {[%clk 0:01:49]} 30. Rd2 {[%clk 0:00:20]}  Nd5 {[%clk 0:01:49]} 31. Qc1 {[%clk 0:00:20]}  Qb4 {[%clk 0:01:35]} 32. Rb1 {[%clk 0:00:15]}  Qd4+ {[%clk 0:01:34]} 33. Kh1 {[%clk 0:00:13]}  Bc4 {[%clk 0:01:27]} 34. Qg1 {[%clk 0:00:13]}  Ne3 {[%clk 0:01:27]} 35. h4 {[%clk 0:00:09]}  Bd5+ {[%clk 0:01:21]} 36. Kh2 {[%clk 0:00:09]}  h5 {[%clk 0:01:13]} 37. Re1 {[%clk 0:00:08]}  Ng4+ {[%clk 0:00:55]} 38. Kh3 {[%clk 0:00:09]}  Qb4 {[%clk 0:00:49]} 39. Red1 {[%clk 0:00:08]}  Be4 {[%clk 0:00:48]} 40. Rxd3 {[%clk 0:00:06]}  Bxd3 {[%clk 0:00:44]} 41. Rxd3 {[%clk 0:00:07]}  Qe4 {[%clk 0:00:44]} 42. Rd2 {[%clk 0:00:05]}  Kh7 {[%clk 0:00:40]} 43. a4 {[%clk 0:00:05]}  Qf5 {[%clk 0:00:38]} 44. Kg2 {[%clk 0:00:05]}  Qe4+ {[%clk 0:00:38]} 45. Kh3 {[%clk 0:00:03]}  Ne3 {[%clk 0:00:38]} 46. Re2 {[%clk 0:00:02]}  Qf5+ {[%clk 0:00:34]} 47. Kh2 {[%clk 0:00:03]}  Ng4+ {[%clk 0:00:33]} 48. Kh1 {[%clk 0:00:02]}  Qd3 {[%clk 0:00:33]} 49. Qe1 {[%clk 0:00:02]}  Qf3+ {[%clk 0:00:26]} 50. Kg1 {[%clk 0:00:01]}  Qd3 {[%clk 0:00:20]} 51. Qf1 {[%clk 0:00:01]}  Qd4+ {[%clk 0:00:20]} 52. Kh1 {[%clk 0:00:01]}  Qxa4 {[%clk 0:00:20]} 53. Qg2 {[%clk 0:00:01]}  Qd1+ {[%clk 0:00:19]} 54. Qg1 {[%clk 0:00:01]}  Qxe2 {[%clk 0:00:19]} 0-1


[Site "https://www.chess.com"]

[Event "Titled Tuesday Blitz April 18 Early 2023"]
[White "Osinenko, Anton"]
[Black "Balint, Vilmos"]
[WhiteFideId "4158970"]
[BlackFideId "718050"]
[WhiteElo "2294"]
[BlackElo "2034"]
[Result "1-0"]
[Round "07"]
[TimeControl "180+2"]
[Date "2023.04.18"]
[WhiteClock "0:00:36"]
[BlackClock "0:00:19"]

1. e4 {[%clk 0:03:00]}  e5 {[%clk 0:02:59]} 2. Nf3 {[%clk 0:02:59]}  Nc6 {[%clk 0:02:59]} 3. c3 {[%clk 0:03:00]}  Nf6 {[%clk 0:02:59]} 4. d4 {[%clk 0:03:00]}  Nxe4 {[%clk 0:03:00]} 5. d5 {[%clk 0:03:00]}  Ne7 {[%clk 0:02:59]} 6. Nxe5 {[%clk 0:03:00]}  Nf6 {[%clk 0:02:53]} 7. Bc4 {[%clk 0:02:48]}  d6 {[%clk 0:02:52]} 8. Bb5+ {[%clk 0:02:47]}  Bd7 {[%clk 0:02:52]} 9. Nxd7 {[%clk 0:02:47]}  Nxd7 {[%clk 0:02:52]} 10. O-O {[%clk 0:02:45]}  a6 {[%clk 0:02:53]} 11. Ba4 {[%clk 0:02:45]}  Ng6 {[%clk 0:02:51]} 12. Qd4 {[%clk 0:02:04]}  b5 {[%clk 0:02:46]} 13. Bc2 {[%clk 0:02:03]}  Qf6 {[%clk 0:02:45]} 14. Qg4 {[%clk 0:01:43]}  Be7 {[%clk 0:02:41]} 15. f4 {[%clk 0:01:42]}  Nc5 {[%clk 0:02:24]} 16. Be3 {[%clk 0:01:36]}  O-O {[%clk 0:02:18]} 17. Bd4 {[%clk 0:01:36]}  Qh4 {[%clk 0:02:17]} 18. Qf3 {[%clk 0:01:34]}  Bf6 {[%clk 0:02:06]} 19. g3 {[%clk 0:01:31]}  Qh3 {[%clk 0:02:03]} 20. Bxf6 {[%clk 0:01:30]}  gxf6 {[%clk 0:02:03]} 21. Nd2 {[%clk 0:01:30]}  Rfe8 {[%clk 0:01:57]} 22. b4 {[%clk 0:01:28]}  Nd7 {[%clk 0:01:54]} 23. Rae1 {[%clk 0:01:27]}  Kf8 {[%clk 0:01:47]} 24. a4 {[%clk 0:01:24]}  Rxe1 {[%clk 0:01:37]} 25. Rxe1 {[%clk 0:01:25]}  Re8 {[%clk 0:01:37]} 26. Rxe8+ {[%clk 0:01:22]}  Kxe8 {[%clk 0:01:38]} 27. axb5 {[%clk 0:01:23]}  axb5 {[%clk 0:01:38]} 28. Bd3 {[%clk 0:01:23]}  Kd8 {[%clk 0:01:32]} 29. Bxb5 {[%clk 0:01:22]}  Nb6 {[%clk 0:01:27]} 30. Qe2 {[%clk 0:01:18]}  Ne7 {[%clk 0:01:26]} 31. Nf3 {[%clk 0:01:14]}  Qf5 {[%clk 0:01:26]} 32. c4 {[%clk 0:01:05]}  Qb1+ {[%clk 0:01:26]} 33. Qe1 {[%clk 0:01:04]}  Qb3 {[%clk 0:01:26]} 34. Qe4 {[%clk 0:00:54]}  f5 {[%clk 0:01:15]} 35. Qd4 {[%clk 0:00:48]}  Kc8 {[%clk 0:01:02]} 36. Qh8+ {[%clk 0:00:38]}  Kb7 {[%clk 0:01:02]} 37. Nd4 {[%clk 0:00:36]}  Qxb4 {[%clk 0:00:38]} 38. Bc6+ {[%clk 0:00:36]}  Nxc6 {[%clk 0:00:20]} 39. Nxc6 {[%clk 0:00:36]}  Qc5+ {[%clk 0:00:18]} 40. Kg2 {[%clk 0:00:35]}  Qxc4 {[%clk 0:00:19]} 41. Qb8+ {[%clk 0:00:35]}  Ka6 {[%clk 0:00:19]} 42. Qa7+ {[%clk 0:00:35]}  Kb5 {[%clk 0:00:19]} 43. Qa5# {[%clk 0:00:36]} 1-0


[Site "https://www.chess.com"]

[Event "Titled Tuesday Blitz April 18 Early 2023"]
[White "chessjazda"]
[Black "Cnejev, Vladimir-Alexandru"]
[BlackFideId "1260898"]
[WhiteElo "2336"]
[BlackElo "2132"]
[Result "0-1"]
[Round "07"]
[TimeControl "180+2"]
[Date "2023.04.18"]
[WhiteClock "0:00:03"]
[BlackClock "0:00:07"]

1. e4 {[%clk 0:02:59]}  g6 {[%clk 0:02:56]} 2. Nc3 {[%clk 0:02:55]}  Bg7 {[%clk 0:02:56]} 3. g3 {[%clk 0:02:55]}  d6 {[%clk 0:02:53]} 4. Bg2 {[%clk 0:02:55]}  c5 {[%clk 0:02:53]} 5. Nge2 {[%clk 0:02:55]}  Nc6 {[%clk 0:02:53]} 6. O-O {[%clk 0:02:54]}  e6 {[%clk 0:02:53]} 7. d3 {[%clk 0:02:54]}  Nge7 {[%clk 0:02:51]} 8. Be3 {[%clk 0:02:54]}  O-O {[%clk 0:02:48]} 9. Qd2 {[%clk 0:02:54]}  Rb8 {[%clk 0:02:42]} 10. Rae1 {[%clk 0:02:53]}  b5 {[%clk 0:02:41]} 11. Bh6 {[%clk 0:02:52]}  b4 {[%clk 0:02:37]} 12. Nd1 {[%clk 0:02:50]}  Qa5 {[%clk 0:02:35]} 13. Bxg7 {[%clk 0:02:48]}  Kxg7 {[%clk 0:02:36]} 14. b3 {[%clk 0:02:35]}  Qxa2 {[%clk 0:02:33]} 15. Ne3 {[%clk 0:02:36]}  Qa5 {[%clk 0:02:09]} 16. h4 {[%clk 0:02:22]}  h5 {[%clk 0:02:06]} 17. g4 {[%clk 0:02:18]}  hxg4 {[%clk 0:02:00]} 18. Nxg4 {[%clk 0:02:18]}  Rh8 {[%clk 0:01:59]} 19. Qf4 {[%clk 0:02:12]}  Qd8 {[%clk 0:01:27]} 20. e5 {[%clk 0:02:04]}  Nd5 {[%clk 0:01:00]} 21. Bxd5 {[%clk 0:01:58]}  exd5 {[%clk 0:00:57]} 22. Qf6+ {[%clk 0:01:08]}  Kg8 {[%clk 0:00:17]} 23. Qxd8+ {[%clk 0:00:57]}  Nxd8 {[%clk 0:00:18]} 24. Nf6+ {[%clk 0:00:57]}  Kg7 {[%clk 0:00:19]} 25. Nxd5 {[%clk 0:00:53]}  dxe5 {[%clk 0:00:19]} 26. Ng3 {[%clk 0:00:49]}  Be6 {[%clk 0:00:12]} 27. Nc7 {[%clk 0:00:39]}  f6 {[%clk 0:00:12]} 28. Re3 {[%clk 0:00:34]}  Rb7 {[%clk 0:00:08]} 29. Nxe6+ {[%clk 0:00:32]}  Nxe6 {[%clk 0:00:09]} 30. Ne4 {[%clk 0:00:32]}  Rxh4 {[%clk 0:00:08]} 31. Rfe1 {[%clk 0:00:28]}  Rc7 {[%clk 0:00:04]} 32. Rg3 {[%clk 0:00:24]}  f5 {[%clk 0:00:04]} 33. Nd2 {[%clk 0:00:21]}  Kf6 {[%clk 0:00:04]} 34. Nc4 {[%clk 0:00:20]}  e4 {[%clk 0:00:02]} 35. dxe4 {[%clk 0:00:19]}  Rxe4 {[%clk 0:00:03]} 36. Rd1 {[%clk 0:00:17]}  Nd4 {[%clk 0:00:03]} 37. Nd6 {[%clk 0:00:12]}  Re6 {[%clk 0:00:02]} 38. Nc4 {[%clk 0:00:10]}  Ne2+ {[%clk 0:00:02]} 39. Kg2 {[%clk 0:00:09]}  Nxg3 {[%clk 0:00:03]} 40. fxg3 {[%clk 0:00:09]}  Rce7 {[%clk 0:00:04]} 41. Kh3 {[%clk 0:00:08]}  Re2 {[%clk 0:00:04]} 42. Rd6+ {[%clk 0:00:08]}  R7e6 {[%clk 0:00:05]} 43. Rd7 {[%clk 0:00:07]}  Rxc2 {[%clk 0:00:04]} 44. Rxa7 {[%clk 0:00:06]}  Kg5 {[%clk 0:00:05]} 45. Rd7 {[%clk 0:00:02]}  Re8 {[%clk 0:00:05]} 46. Rh7 {[%clk 0:00:02]}  Re1 {[%clk 0:00:05]} 47. g4 {[%clk 0:00:01]}  Rh1+ {[%clk 0:00:05]} 48. Kg3 {[%clk 0:00:01]}  f4+ {[%clk 0:00:05]} 49. Kf3 {[%clk 0:00:01]}  Rxh7 {[%clk 0:00:06]} 50. Ne5 {[%clk 0:00:01]}  Rh3+ {[%clk 0:00:06]} 51. Ke4 {[%clk 0:00:02]}  Re3+ {[%clk 0:00:06]} 52. Kd5 {[%clk 0:00:02]}  Rd2+ {[%clk 0:00:06]} 53. Kc4 {[%clk 0:00:02]}  Rxe5 {[%clk 0:00:06]} 54. Kb5 {[%clk 0:00:03]}  f3 {[%clk 0:00:06]} 55. Kc4 {[%clk 0:00:03]}  f2 {[%clk 0:00:07]} 56. Kb5 {[%clk 0:00:03]}  f1=Q+ {[%clk 0:00:08]} 57. Ka4 {[%clk 0:00:03]}  Qa6# {[%clk 0:00:07]} 0-1


[Site "https://www.chess.com"]

[Event "Titled Tuesday Blitz April 18 Early 2023"]
[White "Camacho Collados, Jose"]
[Black "Mikhaylova, Irina"]
[WhiteFideId "2265427"]
[BlackFideId "4109040"]
[WhiteElo "2198"]
[BlackElo "1975"]
[Result "1-0"]
[Round "07"]
[TimeControl "180+2"]
[Date "2023.04.18"]
[WhiteClock "0:00:41"]
[BlackClock "0:00:13"]

1. d4 {[%clk 0:03:00]}  Nf6 {[%clk 0:02:59]} 2. c4 {[%clk 0:03:01]}  g6 {[%clk 0:03:00]} 3. Nc3 {[%clk 0:03:01]}  d5 {[%clk 0:03:00]} 4. cxd5 {[%clk 0:03:01]}  Nxd5 {[%clk 0:03:01]} 5. e4 {[%clk 0:03:00]}  Nxc3 {[%clk 0:03:01]} 6. bxc3 {[%clk 0:03:01]}  Bg7 {[%clk 0:03:01]} 7. Bc4 {[%clk 0:02:59]}  O-O {[%clk 0:03:01]} 8. Ne2 {[%clk 0:02:59]}  c5 {[%clk 0:03:02]} 9. O-O {[%clk 0:02:59]}  Nc6 {[%clk 0:03:02]} 10. Be3 {[%clk 0:02:58]}  Bd7 {[%clk 0:03:02]} 11. Rb1 {[%clk 0:02:56]}  a6 {[%clk 0:03:02]} 12. dxc5 {[%clk 0:02:54]}  Qc7 {[%clk 0:02:45]} 13. Bf4 {[%clk 0:02:43]}  Ne5 {[%clk 0:02:32]} 14. Bd5 {[%clk 0:02:38]}  Bc6 {[%clk 0:02:32]} 15. Bxc6 {[%clk 0:02:27]}  Qxc6 {[%clk 0:02:26]} 16. Qd5 {[%clk 0:02:27]}  Rac8 {[%clk 0:02:01]} 17. Rxb7 {[%clk 0:02:23]}  Qxd5 {[%clk 0:01:57]} 18. exd5 {[%clk 0:02:24]}  Rxc5 {[%clk 0:01:48]} 19. Rd1 {[%clk 0:02:20]}  Re8 {[%clk 0:01:39]} 20. h3 {[%clk 0:02:14]}  Nc4 {[%clk 0:01:28]} 21. Rc7 {[%clk 0:02:09]}  Rxc7 {[%clk 0:01:22]} 22. Bxc7 {[%clk 0:02:10]}  Rc8 {[%clk 0:01:21]} 23. Bg3 {[%clk 0:02:01]}  Na3 {[%clk 0:01:02]} 24. d6 {[%clk 0:01:54]}  exd6 {[%clk 0:00:58]} 25. Rxd6 {[%clk 0:01:55]}  Nb5 {[%clk 0:00:41]} 26. Rxa6 {[%clk 0:01:53]}  Nxc3 {[%clk 0:00:42]} 27. Nxc3 {[%clk 0:01:51]}  Bxc3 {[%clk 0:00:42]} 28. a4 {[%clk 0:01:51]}  Kg7 {[%clk 0:00:42]} 29. Kf1 {[%clk 0:01:40]}  Bd4 {[%clk 0:00:36]} 30. a5 {[%clk 0:01:29]}  Rc2 {[%clk 0:00:27]} 31. Rd6 {[%clk 0:01:26]}  Bf6 {[%clk 0:00:21]} 32. a6 {[%clk 0:01:24]}  Ra2 {[%clk 0:00:22]} 33. Bf4 {[%clk 0:01:11]}  g5 {[%clk 0:00:20]} 34. Be3 {[%clk 0:01:10]}  Be5 {[%clk 0:00:20]} 35. Rb6 {[%clk 0:00:56]}  Bf4 {[%clk 0:00:20]} 36. Bd4+ {[%clk 0:00:52]}  Kf8 {[%clk 0:00:20]} 37. g3 {[%clk 0:00:43]}  Bc7 {[%clk 0:00:20]} 38. Rc6 {[%clk 0:00:42]}  Ra4 {[%clk 0:00:12]} 39. Rxc7 {[%clk 0:00:39]}  Rxd4 {[%clk 0:00:12]} 40. a7 {[%clk 0:00:39]}  Ra4 {[%clk 0:00:12]} 41. Rc8+ {[%clk 0:00:39]}  Kg7 {[%clk 0:00:13]} 42. a8=Q {[%clk 0:00:40]}  Rxa8 {[%clk 0:00:13]} 43. Rxa8 {[%clk 0:00:41]} 1-0


[Site "https://www.chess.com"]

[Event "Titled Tuesday Blitz April 18 Early 2023"]
[White "Prudnykova, Olga"]
[Black "Fiedorek, Michal"]
[WhiteFideId "14121093"]
[BlackFideId "1199528"]
[WhiteElo "2113"]
[BlackElo "2135"]
[Result "1/2-1/2"]
[Round "07"]
[TimeControl "180+2"]
[Date "2023.04.18"]
[WhiteClock "0:01:32"]
[BlackClock "0:00:46"]

1. e4 {[%clk 0:03:00]}  c5 {[%clk 0:02:59]} 2. Nf3 {[%clk 0:03:00]}  Nc6 {[%clk 0:02:56]} 3. Nc3 {[%clk 0:03:00]}  g6 {[%clk 0:02:44]} 4. d4 {[%clk 0:02:58]}  cxd4 {[%clk 0:02:44]} 5. Nxd4 {[%clk 0:02:58]}  Bg7 {[%clk 0:02:43]} 6. Nb3 {[%clk 0:02:58]}  Nf6 {[%clk 0:02:41]} 7. Be2 {[%clk 0:02:58]}  O-O {[%clk 0:02:38]} 8. O-O {[%clk 0:02:57]}  d6 {[%clk 0:02:38]} 9. h3 {[%clk 0:02:57]}  a5 {[%clk 0:02:37]} 10. a4 {[%clk 0:02:56]}  Be6 {[%clk 0:02:37]} 11. Re1 {[%clk 0:02:50]}  Nd7 {[%clk 0:02:35]} 12. Nd5 {[%clk 0:02:46]}  Rc8 {[%clk 0:01:58]} 13. c3 {[%clk 0:02:45]}  Bxd5 {[%clk 0:01:43]} 14. exd5 {[%clk 0:02:44]}  Nce5 {[%clk 0:01:42]} 15. Bb5 {[%clk 0:02:32]}  Nf6 {[%clk 0:01:20]} 16. Rb1 {[%clk 0:02:08]}  h5 {[%clk 0:01:05]} 17. Bg5 {[%clk 0:01:54]}  Nc4 {[%clk 0:00:59]} 18. Qd3 {[%clk 0:01:34]}  Ne5 {[%clk 0:00:52]} 19. Qd1 {[%clk 0:01:34]}  Nc4 {[%clk 0:00:48]} 20. Qd3 {[%clk 0:01:33]}  Ne5 {[%clk 0:00:46]} 21. Qd1 {[%clk 0:01:32]} 1/2-1/2


[Site "https://www.chess.com"]

[Event "Titled Tuesday Blitz April 18 Early 2023"]
[White "Lehtosaari, Mauri"]
[Black "Blokhin, Sofia"]
[WhiteFideId "501999"]
[BlackFideId "4508190"]
[WhiteElo "2507"]
[BlackElo "1994"]
[Result "1-0"]
[Round "07"]
[TimeControl "180+2"]
[Date "2023.04.18"]
[WhiteClock "0:00:25"]
[BlackClock "0:00:03"]

1. d4 {[%clk 0:03:00]}  g6 {[%clk 0:02:58]} 2. Nf3 {[%clk 0:03:00]}  Bg7 {[%clk 0:02:58]} 3. Bg5 {[%clk 0:03:01]}  f5 {[%clk 0:02:56]} 4. c3 {[%clk 0:03:00]}  Nf6 {[%clk 0:02:56]} 5. Bxf6 {[%clk 0:02:58]}  Bxf6 {[%clk 0:02:55]} 6. e3 {[%clk 0:02:52]}  O-O {[%clk 0:02:54]} 7. h4 {[%clk 0:02:51]}  d6 {[%clk 0:02:52]} 8. h5 {[%clk 0:02:51]}  g5 {[%clk 0:02:52]} 9. Qb3+ {[%clk 0:02:48]}  e6 {[%clk 0:02:48]} 10. h6 {[%clk 0:02:41]}  Nc6 {[%clk 0:02:39]} 11. Nbd2 {[%clk 0:02:39]}  g4 {[%clk 0:02:31]} 12. Ng1 {[%clk 0:02:39]}  g3 {[%clk 0:02:28]} 13. f3 {[%clk 0:02:37]}  Bg5 {[%clk 0:02:25]} 14. f4 {[%clk 0:02:35]}  Bf6 {[%clk 0:02:19]} 15. Ne2 {[%clk 0:02:33]}  Kh8 {[%clk 0:02:14]} 16. Nf3 {[%clk 0:02:26]}  Rg8 {[%clk 0:02:12]} 17. O-O-O {[%clk 0:02:25]}  a5 {[%clk 0:02:06]} 18. Rh3 {[%clk 0:02:25]}  a4 {[%clk 0:02:06]} 19. Qc2 {[%clk 0:02:21]}  a3 {[%clk 0:02:04]} 20. b3 {[%clk 0:02:14]}  b5 {[%clk 0:02:03]} 21. b4 {[%clk 0:02:09]}  Ne7 {[%clk 0:01:58]} 22. Nxg3 {[%clk 0:01:55]}  Nd5 {[%clk 0:01:57]} 23. Qd3 {[%clk 0:01:54]}  c5 {[%clk 0:01:48]} 24. dxc5 {[%clk 0:01:35]}  Nxc3 {[%clk 0:01:38]} 25. Ng5 {[%clk 0:01:29]}  Ra7 {[%clk 0:01:20]} 26. Rd2 {[%clk 0:01:15]}  d5 {[%clk 0:01:03]} 27. Nh5 {[%clk 0:01:11]}  Ne4 {[%clk 0:00:53]} 28. Nxe4 {[%clk 0:01:08]}  fxe4 {[%clk 0:00:50]} 29. Qb3 {[%clk 0:01:03]}  Bb2+ {[%clk 0:00:37]} 30. Rxb2 {[%clk 0:00:57]}  axb2+ {[%clk 0:00:35]} 31. Qxb2+ {[%clk 0:00:58]}  d4 {[%clk 0:00:35]} 32. exd4 {[%clk 0:00:58]}  Qd5 {[%clk 0:00:18]} 33. Nf6 {[%clk 0:00:54]}  Qxa2 {[%clk 0:00:16]} 34. Qxa2 {[%clk 0:00:48]}  Rxa2 {[%clk 0:00:17]} 35. Nxg8 {[%clk 0:00:49]}  Kxg8 {[%clk 0:00:17]} 36. Bxb5 {[%clk 0:00:49]}  Rxg2 {[%clk 0:00:15]} 37. Bc6 {[%clk 0:00:46]}  Re2 {[%clk 0:00:11]} 38. b5 {[%clk 0:00:45]}  e3 {[%clk 0:00:10]} 39. b6 {[%clk 0:00:43]}  Rd2 {[%clk 0:00:10]} 40. Rxe3 {[%clk 0:00:43]}  Rxd4 {[%clk 0:00:09]} 41. Rc3 {[%clk 0:00:32]}  Rb4 {[%clk 0:00:07]} 42. Kd2 {[%clk 0:00:27]}  Kf7 {[%clk 0:00:07]} 43. Ke3 {[%clk 0:00:26]}  Ke7 {[%clk 0:00:07]} 44. Be4 {[%clk 0:00:26]}  Kd8 {[%clk 0:00:04]} 45. Bxh7 {[%clk 0:00:25]}  Bb7 {[%clk 0:00:03]} 46. Bd3 {[%clk 0:00:25]}  Bc6 {[%clk 0:00:03]} 47. h7 {[%clk 0:00:25]} 1-0


[Site "https://www.chess.com"]

[Event "Titled Tuesday Blitz April 18 Early 2023"]
[White "Palczert, Matyas"]
[Black "koncheto"]
[WhiteFideId "784958"]
[WhiteElo "2224"]
[BlackElo "2535"]
[Result "1-0"]
[Round "07"]
[TimeControl "180+2"]
[Date "2023.04.18"]
[WhiteClock "0:00:41"]
[BlackClock "0:00:12"]

1. e4 {[%clk 0:03:00]}  c5 {[%clk 0:02:56]} 2. Nf3 {[%clk 0:03:00]}  d6 {[%clk 0:02:55]} 3. d4 {[%clk 0:03:00]}  cxd4 {[%clk 0:02:56]} 4. Nxd4 {[%clk 0:03:00]}  Nf6 {[%clk 0:02:57]} 5. Nc3 {[%clk 0:03:00]}  Nc6 {[%clk 0:02:56]} 6. Bg5 {[%clk 0:02:58]}  e6 {[%clk 0:02:56]} 7. Qd2 {[%clk 0:02:55]}  a6 {[%clk 0:02:55]} 8. Nxc6 {[%clk 0:02:54]}  bxc6 {[%clk 0:02:55]} 9. O-O-O {[%clk 0:02:53]}  Be7 {[%clk 0:02:55]} 10. Bxf6 {[%clk 0:02:52]}  gxf6 {[%clk 0:02:55]} 11. Bc4 {[%clk 0:02:51]}  d5 {[%clk 0:02:54]} 12. exd5 {[%clk 0:02:49]}  cxd5 {[%clk 0:02:55]} 13. Nxd5 {[%clk 0:02:48]}  exd5 {[%clk 0:02:41]} 14. Bxd5 {[%clk 0:02:47]}  Ra7 {[%clk 0:02:41]} 15. Bc6+ {[%clk 0:02:45]}  Bd7 {[%clk 0:02:38]} 16. Qe3 {[%clk 0:02:33]}  Rc7 {[%clk 0:02:27]} 17. Rxd7 {[%clk 0:02:28]}  Rxd7 {[%clk 0:02:12]} 18. Rd1 {[%clk 0:02:27]}  O-O {[%clk 0:01:35]} 19. Rxd7 {[%clk 0:02:23]}  Qc8 {[%clk 0:01:36]} 20. Qxe7 {[%clk 0:01:50]}  Qxc6 {[%clk 0:01:34]} 21. Rd8 {[%clk 0:01:43]}  Rxd8 {[%clk 0:01:30]} 22. Qxd8+ {[%clk 0:01:43]}  Kg7 {[%clk 0:01:30]} 23. Qd3 {[%clk 0:01:40]}  Kh8 {[%clk 0:01:21]} 24. Qf3 {[%clk 0:01:34]}  Qe6 {[%clk 0:01:20]} 25. b3 {[%clk 0:01:24]}  Qe1+ {[%clk 0:01:19]} 26. Kb2 {[%clk 0:01:23]}  Qe5+ {[%clk 0:01:19]} 27. Qc3 {[%clk 0:01:23]}  Qxh2 {[%clk 0:01:01]} 28. Qxf6+ {[%clk 0:01:21]}  Kg8 {[%clk 0:01:02]} 29. g3 {[%clk 0:01:19]}  a5 {[%clk 0:00:57]} 30. Qg5+ {[%clk 0:01:17]}  Kh8 {[%clk 0:00:55]} 31. Qxa5 {[%clk 0:01:11]}  Qxf2 {[%clk 0:00:54]} 32. Qe5+ {[%clk 0:01:11]}  Kg8 {[%clk 0:00:53]} 33. a4 {[%clk 0:01:10]}  f6 {[%clk 0:00:53]} 34. Qc3 {[%clk 0:01:09]}  h5 {[%clk 0:00:46]} 35. a5 {[%clk 0:01:09]}  f5 {[%clk 0:00:46]} 36. a6 {[%clk 0:01:08]}  f4 {[%clk 0:00:46]} 37. Qc4+ {[%clk 0:01:06]}  Kh7 {[%clk 0:00:28]} 38. Qxf4 {[%clk 0:01:03]}  Qc5 {[%clk 0:00:26]} 39. Qf7+ {[%clk 0:00:55]}  Kh8 {[%clk 0:00:15]} 40. a7 {[%clk 0:00:43]}  Qd4+ {[%clk 0:00:15]} 41. Ka2 {[%clk 0:00:42]}  Qxa7+ {[%clk 0:00:12]} 42. Qxa7 {[%clk 0:00:41]} 1-0


[Site "https://www.chess.com"]

[Event "Titled Tuesday Blitz April 18 Early 2023"]
[White "littlepillow2010"]
[Black "Ordekalog"]
[WhiteElo "2418"]
[BlackElo "2508"]
[Result "0-1"]
[Round "07"]
[TimeControl "180+2"]
[Date "2023.04.18"]
[WhiteClock "0:00:01"]
[BlackClock "0:01:18"]

1. e4 {[%clk 0:03:00]}  c5 {[%clk 0:02:58]} 2. Nf3 {[%clk 0:02:56]}  Nc6 {[%clk 0:02:58]} 3. d4 {[%clk 0:02:56]}  cxd4 {[%clk 0:02:58]} 4. Nxd4 {[%clk 0:02:57]}  Qb6 {[%clk 0:02:57]} 5. Nb3 {[%clk 0:02:56]}  Nf6 {[%clk 0:02:57]} 6. Nc3 {[%clk 0:02:56]}  e6 {[%clk 0:02:58]} 7. Bd3 {[%clk 0:02:56]}  Be7 {[%clk 0:02:57]} 8. a3 {[%clk 0:02:57]}  O-O {[%clk 0:02:57]} 9. O-O {[%clk 0:02:57]}  a6 {[%clk 0:02:57]} 10. Be3 {[%clk 0:02:57]}  Qc7 {[%clk 0:02:57]} 11. f4 {[%clk 0:02:57]}  d6 {[%clk 0:02:58]} 12. Qf3 {[%clk 0:02:55]}  b5 {[%clk 0:02:58]} 13. g4 {[%clk 0:02:21]}  Bb7 {[%clk 0:02:56]} 14. g5 {[%clk 0:02:21]}  Nd7 {[%clk 0:02:56]} 15. h4 {[%clk 0:02:18]}  b4 {[%clk 0:02:51]} 16. axb4 {[%clk 0:02:17]}  Nxb4 {[%clk 0:02:52]} 17. Qh3 {[%clk 0:02:08]}  d5 {[%clk 0:02:45]} 18. exd5 {[%clk 0:01:42]}  Nxd5 {[%clk 0:02:43]} 19. Nxd5 {[%clk 0:01:41]}  Bxd5 {[%clk 0:02:43]} 20. h5 {[%clk 0:01:32]}  Nc5 {[%clk 0:02:25]} 21. Nxc5 {[%clk 0:01:01]}  Bxc5 {[%clk 0:02:24]} 22. Bxc5 {[%clk 0:00:49]}  Qxc5+ {[%clk 0:02:25]} 23. Kh2 {[%clk 0:00:49]}  Qb4 {[%clk 0:02:17]} 24. Qe3 {[%clk 0:00:28]}  Rfc8 {[%clk 0:02:11]} 25. b3 {[%clk 0:00:19]}  a5 {[%clk 0:02:11]} 26. Ra4 {[%clk 0:00:18]}  Qd6 {[%clk 0:02:08]} 27. Rd4 {[%clk 0:00:17]}  Qb6 {[%clk 0:02:05]} 28. g6 {[%clk 0:00:12]}  fxg6 {[%clk 0:01:59]} 29. hxg6 {[%clk 0:00:12]}  hxg6 {[%clk 0:01:57]} 30. Bxg6 {[%clk 0:00:11]}  a4 {[%clk 0:01:48]} 31. bxa4 {[%clk 0:00:04]}  Rxa4 {[%clk 0:01:47]} 32. Rd3 {[%clk 0:00:04]}  Rxc2+ {[%clk 0:01:44]} 33. Kg3 {[%clk 0:00:03]}  Rg2+ {[%clk 0:01:38]} 34. Kh3 {[%clk 0:00:03]}  Qxe3+ {[%clk 0:01:37]} 35. Rxe3 {[%clk 0:00:04]}  Rxg6 {[%clk 0:01:36]} 36. Re5 {[%clk 0:00:03]}  Rf6 {[%clk 0:01:34]} 37. Kg3 {[%clk 0:00:03]}  Kf7 {[%clk 0:01:33]} 38. Rf2 {[%clk 0:00:02]}  Ra3+ {[%clk 0:01:32]} 39. Kg4 {[%clk 0:00:02]}  Rg6+ {[%clk 0:01:31]} 40. Kh4 {[%clk 0:00:03]}  Kf6 {[%clk 0:01:29]} 41. Rg5 {[%clk 0:00:02]}  Rh6+ {[%clk 0:01:20]} 42. Kg4 {[%clk 0:00:01]}  Rhh3 {[%clk 0:01:19]} 43. Rh5 {[%clk 0:00:01]}  Rag3# {[%clk 0:01:18]} 0-1


[Site "https://www.chess.com"]